bitfinex/quotes_SOLUSD_20240624
["timestamp","ask_amount","ask_price","bid_price","bid_amount"]
[1719240014178,25.95,129.14,129.12,100.0]
[1719240014558,25.95,129.14,129.1,100.0]
[1719240014762,25.95,129.11,129.1,100.0]
[1719240016878,70.95,129.11,129.1,100.0]
[1719240017254,70.95,129.11,129.08,100.0]
[1719240017556,45.0,129.1,129.08,100.0]
[1719240017953,45.0,129.1,129.06,100.0]
[1719240018160,25.95,129.08,129.06,100.0]
[1719240018898,16.6354,129.14,129.1,100.0]
[1719240019197,25.95,129.12,129.1,100.0]
[1719240020587,0.77459334,129.11,129.1,100.0]
[1719240020763,0.77459334,129.11,129.1,200.0]
[1719240021085,0.77459334,129.11,129.1,206.0457]
[1719240021450,16.0576,129.22,129.17,100.0]
[1719240021677,25.95,129.19,129.17,100.0]
[1719240022795,25.95,129.19,129.15,100.0]
[1719240022996,25.95,129.16,129.15,100.0]
[1719240023174,70.95,129.16,129.15,100.0]
[1719240023869,70.95,129.16,129.13,100.0]
[1719240024070,45.0,129.15,129.13,100.0]
[1719240025578,45.0,129.15,129.11,100.0]
[1719240025895,25.95,129.13,129.11,100.0]
[1719240026668,45.0,129.12,129.11,100.0]
[1719240027092,25.95,129.13,129.11,100.0]
[1719240027470,45.0,129.12,129.11,100.0]
[1719240028489,21.3779,129.19,129.14,100.0]
[1719240028675,25.95,129.16,129.14,100.0]
[1719240028873,20.0,129.15,129.14,100.0]
[1719240030479,25.95,129.16,129.15,100.0]
[1719240030676,45.95,129.16,129.15,100.0]
[1719240032104,45.95,129.16,129.14,100.0]
[1719240034986,25.95,129.13,129.12,100.0]
[1719240038386,45.95,129.13,129.12,100.0]
[1719240039705,62.745,129.12,129.05,100.0]
[1719240039904,25.95,129.06,129.05,100.0]
[1719240040385,45.95,129.06,129.05,100.0]
[1719240040698,46.72489346,129.06,129.05,100.0]
[1719240040900,91.72489346,129.06,129.05,100.0]
[1719240041698,91.72489346,129.06,129.03,100.0]
[1719240041882,65.0,129.05,129.03,100.0]
[1719240042084,0.77456604,129.04,128.99,100.0]
[1719240042280,25.95,129.01,128.99,100.0]
[1719240042917,65.0,129.0,128.99,100.0]
[1719240043086,20.0,129.0,128.99,100.0]
[1719240044401,25.95,129.01,128.99,100.0]
[1719240044607,25.95,129.01,129.0,100.0]
[1719240044905,45.95,129.01,129.0,100.0]
[1719240045410,90.95,129.01,128.99,100.0]
[1719240045714,45.95,129.01,128.99,100.0]
[1719240046104,45.95,129.01,129.0,100.0]
[1719240046505,20.0,129.01,129.0,100.0]
[1719240046703,20.0,129.01,128.99,100.0]
[1719240047015,20.0,129.01,128.96,16.4044]
[1719240047016,20.0,129.02,129.01,100.0]
[1719240047914,0.77489346,129.06,129.04,100.0]
[1719240048213,0.77489346,129.06,129.05,100.0]
[1719240049497,20.27489346,129.06,129.05,100.0]
[1719240050617,20.27489346,129.06,129.04,100.0]
[1719240052611,46.9994595,129.06,129.02,100.0]
[1719240052809,25.95,129.03,129.02,100.0]
[1719240052997,70.95,129.03,129.0,100.0]
[1719240053322,65.0,129.02,128.98,100.0]
[1719240053626,25.95,129.0,128.98,100.0]
[1719240054807,65.0,129.02,128.98,100.0]
[1719240055514,65.0,129.02,129.0,100.0]
[1719240056617,45.0,129.02,129.0,100.0]
[1719240056926,20.0,129.01,129.0,100.0]
[1719240057117,65.0,129.01,129.0,100.0]
[1719240057809,20.0,129.01,129.0,100.0]
[1719240058221,65.0,129.01,129.0,100.0]
[1719240058420,65.0,129.01,128.96,100.0]
[1719240058616,45.77456604,129.0,128.96,100.0]
[1719240058804,0.77456604,128.99,128.94,100.0]
[1719240059006,30.34,128.97,128.92,100.0]
[1719240059207,45.77456604,128.96,128.92,100.0]
[1719240059525,20.0,128.95,128.92,100.0]
[1719240059746,45.0,128.94,128.9,100.0]
[1719240060227,20.77456604,128.93,128.9,100.0]
[1719240060415,20.77456604,128.93,128.88,100.0]
[1719240060416,45.77456604,128.92,128.88,100.0]
[1719240060614,0.27489346,128.91,128.86,100.0]
[1719240060821,21.0494595,128.91,128.86,100.0]
[1719240061017,45.0,128.9,128.86,100.0]
[1719240061327,45.0,128.9,128.83,6.4339]
[1719240061328,45.0,128.9,128.88,100.0]
[1719240061629,20.0,128.89,128.87,100.0]
[1719240061828,45.0,128.88,128.84,100.0]
[1719240062241,45.0,128.88,128.72,6.10777175]
[1719240062242,20.77456604,128.87,128.82,100.0]
[1719240062713,45.0,128.86,128.82,100.0]
[1719240062915,20.0,128.85,128.82,100.0]
[1719240063113,45.0,128.84,128.82,100.0]
[1719240063611,20.0,128.83,128.81,100.0]
[1719240064031,20.0,128.83,128.82,100.0]
[1719240064209,30.34,128.88,128.85,100.0]
[1719240064411,20.0,128.87,128.85,100.0]
[1719240064620,46.52,128.89,128.81,100.0]
[1719240064926,30.34,128.9,128.79,6.4339]
[1719240064927,76.86,128.86,128.79,100.0]
[1719240065106,0.77456604,128.85,128.79,100.0]
[1719240065317,20.77456604,128.85,128.79,100.0]
[1719240065830,45.0,128.84,128.79,100.0]
[1719240066040,45.0,128.84,128.79,200.0]
[1719240066224,20.0,128.83,128.79,200.0]
[1719240066625,45.0,128.82,128.79,100.0]
[1719240067024,20.0,128.81,128.79,200.0]
[1719240067817,20.0,128.81,128.79,100.0]
[1719240068016,45.0,128.8,128.79,100.0]
[1719240068520,65.0,128.8,128.77,100.0]
[1719240068819,45.0,128.8,128.75,100.0]
[1719240069022,20.77456604,128.79,128.75,100.0]
[1719240069327,45.0,128.78,128.77,100.0]
[1719240069542,65.0,128.78,128.75,100.0]
[1719240072131,65.0,128.78,128.73,100.0]
[1719240072334,65.0,128.78,128.75,100.0]
[1719240073132,111.52,128.78,128.73,100.0]
[1719240073342,111.52,128.78,128.67,6.6234]
[1719240073343,0.77456604,128.77,128.71,100.0]
[1719240073517,0.77456604,128.77,128.73,100.0]
[1719240073927,0.77456604,128.77,128.71,100.0]
[1719240074442,0.77456604,128.77,128.73,100.0]
[1719240074614,0.77456604,128.77,128.72,100.0]
[1719240075439,0.77456604,128.77,128.71,100.0]
[1719240075937,0.77456604,128.77,128.69,200.0]
[1719240076239,0.77456604,128.77,128.71,100.0]
[1719240077951,20.0,128.78,128.73,200.0]
[1719240078120,20.77456604,128.78,128.73,200.0]
[1719240079250,20.0,128.78,128.75,100.0]
[1719240079540,76.86,128.82,128.73,200.0]
[1719240079727,0.77456604,128.81,128.73,100.0]
[1719240079917,46.52,128.8,128.73,100.0]
[1719240080231,46.52,128.8,128.73,200.0]
[1719240080232,0.77456604,128.79,128.73,200.0]
[1719240080430,0.27489346,128.74,128.73,100.0]
[1719240081322,0.27489346,128.74,128.73,200.0]
[1719240085749,20.0,128.8,128.73,206.494]
[1719240085935,46.2738,128.86,128.79,200.0]
[1719240086163,0.77456604,128.85,128.81,100.0]
[1719240086330,0.77456604,128.85,128.79,200.0]
[1719240086547,0.77456604,128.85,128.79,100.0]
[1719240087053,0.77456604,128.85,128.79,200.0]
[1719240087246,46.2738,128.86,128.82,100.0]
[1719240087829,20.0,128.85,128.82,100.0]
[1719240088225,20.77456604,128.85,128.8,100.0]
[1719240088667,45.0,128.84,128.8,100.0]
[1719240088964,45.0,128.84,128.82,100.0]
[1719240090537,45.0,128.84,128.8,100.0]
[1719240090743,0.77456604,128.83,128.78,100.0]
[1719240092960,45.0,128.84,128.8,100.0]
[1719240093169,45.0,128.85,128.81,0.39518509]
[1719240093466,0.77456604,128.84,128.81,0.39518509]
[1719240093631,0.77456604,128.84,128.8,100.0]
[1719240095932,0.77456604,128.84,128.78,100.0]
[1719240096654,0.77456604,128.84,128.76,100.0]
[1719240096839,30.34,128.82,128.76,100.0]
[1719240097047,45.77456604,128.81,128.76,100.0]
[1719240098343,45.77456604,128.81,128.74,100.0]
[1719240098344,16.496,128.8,128.74,100.0]
[1719240098539,92.29456604,128.79,128.74,100.0]
[1719240098765,30.34,128.78,128.72,100.0]
[1719240098968,45.77456604,128.77,128.72,100.0]
[1719240099174,0.77456604,128.76,128.72,100.0]
[1719240099541,0.77456604,128.76,128.71,100.0]
[1719240099744,20.77456604,128.76,128.71,100.0]
[1719240099964,45.0,128.75,128.71,100.0]
[1719240100353,0.77456604,128.74,128.7,100.0]
[1719240100571,0.77700078,128.71,128.7,100.0]
[1719240106277,0.77700078,128.71,128.7,115.1105]
[1719240111166,0.77700078,128.71,128.7,15.1105]
[1719240111483,0.77700078,128.71,128.7,100.0]
[1719240114554,0.77700078,128.71,128.69,100.0]
[1719240115156,0.77700078,128.71,128.68,100.0]
[1719240115358,0.77700078,128.71,128.7,100.0]
[1719240117666,0.77700078,128.71,128.7,200.0]
[1719240119283,0.77700078,128.71,128.7,206.1587]
[1719240126895,0.77700078,128.71,128.7,200.0]
[1719240131664,0.77700078,128.71,128.7,100.0]
[1719240131865,0.77700078,128.71,128.7,200.0]
[1719240137975,0.77700078,128.71,128.7,100.0]
[1719240138294,0.77700078,128.71,128.7,200.0]
[1719240138806,0.77700078,128.71,128.7,100.0]
[1719240139304,0.77700078,128.71,128.68,200.0]
[1719240140098,0.77700078,128.71,128.7,200.0]
[1719240140306,0.77700078,128.71,128.7,100.0]
[1719240140683,0.77700078,128.71,128.7,200.0]
[1719240141193,0.77700078,128.71,128.7,100.0]
[1719240141909,0.77700078,128.71,128.7,200.0]
[1719240148497,0.77700078,128.71,128.7,100.0]
[1719240149297,0.77700078,128.71,128.7,200.0]
[1719240149803,0.77700078,128.71,128.7,100.0]
[1719240149985,0.77700078,128.71,128.7,200.0]
[1719240155878,0.77700078,128.71,128.69,100.0]
[1719240156285,1.55156682,128.71,128.69,100.0]
[1719240156604,42.7586,128.7,128.69,100.0]
[1719240156814,87.7586,128.7,128.66,100.0]
[1719240156986,65.77456604,128.69,128.64,200.0]
[1719240157193,112.29456604,128.69,128.64,200.0]
[1719240157598,26.11,128.67,128.64,100.0]
[1719240157802,45.0,128.66,128.64,100.0]
[1719240157995,26.11,128.67,128.64,100.0]
[1719240158410,26.11,128.67,128.65,100.0]
[1719240158591,26.3106,128.69,128.64,100.0]
[1719240158800,45.77456604,128.68,128.63,100.0]
[1719240158992,26.11,128.66,128.62,100.0]
[1719240159309,45.0,128.65,128.62,100.0]
[1719240160699,0.77700078,128.63,128.61,100.0]
[1719240162411,0.77700078,128.63,128.6,100.0]
[1719240163120,0.77700078,128.63,128.59,100.0]
[1719240163325,26.88700078,128.63,128.59,100.0]
[1719240163629,45.0,128.62,128.59,100.0]
[1719240163916,45.0,128.62,128.59,200.0]
[1719240165321,0.77456604,128.61,128.57,100.0]
[1719240167426,0.77456604,128.61,128.47,256.2]
[1719240167427,26.11,128.6,128.55,100.0]
[1719240167614,0.77456604,128.59,128.55,100.0]
[1719240167824,45.77456604,128.59,128.55,100.0]
[1719240168323,53.85870078,128.63,128.59,100.0]
[1719240168623,26.88456604,128.62,128.59,100.0]
[1719240168840,20.0,128.61,128.59,100.0]
[1719240169008,20.77456604,128.61,128.59,100.0]
[1719240169196,0.77456604,128.6,128.59,100.0]
[1719240169402,20.77456604,128.61,128.57,200.0]
[1719240169707,0.77456604,128.6,128.59,100.0]
[1719240169898,91.52,128.6,128.59,100.0]
[1719240170101,91.52,128.6,128.56,100.0]
[1719240170102,45.0,128.6,128.56,100.0]
[1719240170329,45.0,128.6,128.5,22.9357]
[1719240170330,26.88456604,128.59,128.54,100.0]
[1719240170532,80.4099,128.58,128.54,100.0]
[1719240171207,80.4099,128.58,128.55,100.0]
[1719240171702,65.0,128.58,128.56,100.0]
[1719240172819,62.2177,128.61,128.56,100.0]
[1719240173001,45.77456604,128.6,128.56,100.0]
[1719240173208,20.0,128.59,128.56,100.0]
[1719240173418,45.0,128.58,128.56,100.0]
[1719240173924,45.0,128.58,128.54,100.0]
[1719240174228,20.0,128.57,128.54,100.0]
[1719240174801,45.0,128.56,128.54,100.0]
[1719240175815,20.0,128.55,128.53,100.0]
[1719240176008,45.0,128.57,128.53,100.0]
[1719240176326,20.77456604,128.56,128.52,100.0]
[1719240176507,45.0,128.55,128.52,100.0]
[1719240177228,63.29416604,128.54,128.49,100.0]
[1719240177536,65.0,128.53,128.49,100.0]
[1719240177832,65.0,128.53,128.51,100.0]
[1719240178030,20.0,128.53,128.51,100.0]
[1719240178216,16.64426604,128.57,128.55,100.0]
[1719240178414,20.0,128.56,128.55,100.0]
[1719240178602,20.0,128.56,128.53,100.0]
[1719240178805,20.77456604,128.56,128.53,100.0]
[1719240179726,45.0,128.55,128.53,100.0]
[1719240180410,20.0,128.56,128.53,100.0]
[1719240180738,0.77700078,128.54,128.53,100.0]
[1719240180922,0.77700078,128.54,128.53,200.0]
[1719240190132,0.77700078,128.54,128.53,100.0]
[1719240190319,0.77700078,128.54,128.53,200.0]
[1719240190524,0.77700078,128.54,128.53,100.0]
[1719240191441,0.77700078,128.54,128.53,200.0]
[1719240192234,0.77700078,128.54,128.53,100.0]
[1719240192541,0.77700078,128.54,128.49,200.0]
[1719240192542,41.90090078,128.54,128.49,200.0]
[1719240192842,20.0,128.53,128.49,200.0]
[1719240193237,20.77456604,128.53,128.49,200.0]
[1719240193434,20.0,128.53,128.51,200.0]
[1719240193623,20.77456604,128.53,128.51,100.0]
[1719240194927,45.0,128.52,128.49,100.0]
[1719240195237,26.11,128.51,128.49,100.0]
[1719240195430,20.0,128.5,128.49,100.0]
[1719240195841,20.0,128.5,128.47,200.0]
[1719240196547,20.77456604,128.5,128.47,100.0]
[1719240196718,26.11,128.48,128.47,100.0]
[1719240197119,26.11,128.48,128.47,200.0]
[1719240197319,0.77456604,128.51,128.47,200.0]
[1719240197543,71.11,128.52,128.5,100.0]
[1719240197741,20.0,128.51,128.48,100.0]
[1719240198043,20.77456604,128.51,128.44,200.0]
[1719240198252,26.11,128.48,128.44,200.0]
[1719240198460,20.0,128.47,128.46,100.0]
[1719240198927,20.0,128.47,128.44,200.0]
[1719240199123,20.77456604,128.47,128.44,200.0]
[1719240199324,20.77456604,128.47,128.44,100.0]
[1719240199641,26.11,128.45,128.42,100.0]
[1719240199947,20.0,128.44,128.41,100.0]
[1719240200552,0.77700078,128.42,128.41,100.0]
[1719240203829,50.07170078,128.42,128.38,200.0]
[1719240204150,0.77456604,128.41,128.32,6.3262]
[1719240204357,26.11,128.38,128.37,100.0]
[1719240204533,26.11,128.38,128.35,100.0]
[1719240204849,70.48170078,128.42,128.41,100.0]
[1719240204850,0.77700078,128.42,128.41,100.0]
[1719240205526,6.2326,128.4,128.36,100.0]
[1719240205728,45.77456604,128.39,128.34,100.0]
[1719240205953,45.77456604,128.39,128.32,100.0]
[1719240205954,20.0,128.38,128.32,200.0]
[1719240206172,0.77456604,128.37,128.32,200.0]
[1719240206332,45.77456604,128.37,128.32,200.0]
[1719240206834,20.0,128.36,128.32,200.0]
[1719240207147,20.0,128.36,128.35,100.0]
[1719240208936,20.0,128.36,128.33,100.0]
[1719240209130,30.62,128.38,128.33,100.0]
[1719240209330,30.62,128.38,128.3,100.0]
[1719240209331,65.77456604,128.37,128.32,100.0]
[1719240210444,65.77456604,128.37,128.33,100.0]
[1719240210649,20.0,128.37,128.35,100.0]
[1719240210832,20.0,128.37,128.33,200.0]
[1719240211443,20.77456604,128.37,128.33,100.0]
[1719240211643,20.0,128.37,128.33,100.0]
[1719240212252,20.77456604,128.37,128.31,200.0]
[1719240212545,20.77456604,128.37,128.31,81.10819137]
[1719240212546,52.6964,128.36,128.31,81.10819137]
[1719240212753,45.77456604,128.35,128.29,100.0]
[1719240212957,20.0,128.34,128.29,100.0]
[1719240213138,20.77456604,128.34,128.29,100.0]
[1719240213335,36.93856604,128.34,128.29,100.0]
[1719240213542,67.55856604,128.34,128.29,100.0]
[1719240213937,114.07856604,128.34,128.25,140.0]
[1719240214137,46.52,128.32,128.25,140.0]
[1719240214348,112.29456604,128.31,128.25,140.0]
[1719240214955,20.77456604,128.31,128.27,100.0]
[1719240215137,46.52,128.33,128.27,100.0]
[1719240215138,0.77456604,128.32,128.27,100.0]
[1719240215462,20.0,128.32,128.29,100.0]
[1719240215634,16.164,128.34,128.31,100.0]
[1719240215831,20.0,128.33,128.32,100.0]
[1719240216072,20.0,128.33,128.31,100.0]
[1719240216284,15.2288,128.38,128.33,100.0]
[1719240216563,15.2288,128.38,128.34,100.0]
[1719240216934,15.2288,128.38,128.35,100.0]
[1719240217135,43.40749266,128.4,128.36,100.0]
[1719240217771,0.77456604,128.39,128.35,100.0]
[1719240218066,0.77456604,128.39,128.26,21.7509]
[1719240218067,0.77456604,128.39,128.29,200.0]
[1719240218231,46.52,128.38,128.29,200.0]
[1719240218437,67.29456604,128.37,128.29,200.0]
[1719240218647,67.29456604,128.37,128.3,100.0]
[1719240219336,45.0,128.36,128.3,100.0]
[1719240219568,0.77456604,128.35,128.3,100.0]
[1719240219863,20.77456604,128.35,128.3,100.0]
[1719240220166,20.0,128.35,128.31,100.0]
[1719240220380,0.77456604,128.37,128.32,100.0]
[1719240220661,0.77456604,128.37,128.33,100.0]
[1719240220858,20.77456604,128.39,128.33,100.0]
[1719240221400,20.77456604,128.39,128.26,21.7509]
[1719240221401,20.77456604,128.39,128.35,100.0]
[1719240221851,20.0,128.39,128.35,100.0]
[1719240222052,20.77456604,128.39,128.35,100.0]
[1719240222478,20.77456604,128.39,128.34,100.0]
[1719240222656,20.77456604,128.39,128.33,100.0]
[1719240224285,20.77456604,128.39,128.34,100.0]
[1719240224459,20.77456604,128.39,128.35,100.0]
[1719240224782,20.0,128.39,128.35,100.0]
[1719240225098,20.77456604,128.39,128.35,100.0]
[1719240225453,20.0,128.39,128.37,100.0]
[1719240225661,7.1065587,128.4,128.37,100.0]
[1719240225868,6.33199266,128.4,128.37,100.0]
[1719240226063,0.77456604,128.4,128.37,100.0]
[1719240226269,0.77456604,128.4,128.34,100.0]
[1719240226488,0.77456604,128.4,128.33,100.0]
[1719240226655,78.48510904,128.4,128.33,100.0]
[1719240227289,111.52,128.39,128.33,100.0]
[1719240227483,0.77456604,128.38,128.33,100.0]
[1719240227858,0.77456604,128.38,128.34,100.0]
[1719240228167,0.77456604,128.38,128.32,100.0]
[1719240228377,122.91456604,128.38,128.3,100.0]
[1719240228560,122.91456604,128.38,128.31,100.0]
[1719240228763,20.0,128.37,128.31,100.0]
[1719240228973,0.77456604,128.36,128.3,100.0]
[1719240229470,0.77456604,128.36,128.31,100.0]
[1719240229681,0.77456604,128.36,128.33,100.0]
[1719240230782,26.3197,128.37,128.34,100.0]
[1719240231094,20.0,128.37,128.33,100.0]
[1719240231276,0.77456604,128.39,128.33,100.0]
[1719240231478,20.77456604,128.39,128.35,100.0]
[1719240231792,21.91870212,128.41,128.37,100.0]
[1719240233172,6.21110212,128.41,128.39,100.0]
[1719240233373,20.0,128.4,128.39,100.0]
[1719240235309,20.0,128.4,128.36,100.0]
[1719240235592,0.77456604,128.41,128.36,100.0]
[1719240235793,20.77456604,128.41,128.36,100.0]
[1719240236097,20.0,128.41,128.38,100.0]
[1719240236270,53.55896888,128.43,128.38,100.0]
[1719240236487,20.77456604,128.42,128.38,100.0]
[1719240236876,20.77456604,128.42,128.38,200.0]
[1719240239291,20.0,128.42,128.38,200.0]
[1719240239609,0.77456604,128.42,128.38,200.0]
[1719240239902,20.77456604,128.43,128.38,200.0]
[1719240240130,0.77456604,128.42,128.38,200.0]
[1719240240281,20.77456604,128.43,128.38,200.0]
[1719240240480,20.0,128.43,128.4,100.0]
[1719240240887,0.77456604,128.42,128.38,100.0]
[1719240241409,20.0,128.43,128.42,100.0]
[1719240242005,31.94883704,128.47,128.42,100.0]
[1719240242307,31.94883704,128.47,128.4,100.0]
[1719240243007,31.94883704,128.47,128.42,100.0]
[1719240243214,20.0,128.46,128.43,100.0]
[1719240243502,20.0,128.46,128.43,200.0]
[1719240244144,6.92136336,128.47,128.42,100.0]
[1719240244515,6.92136336,128.47,128.39,200.0]
[1719240244809,6.92136336,128.47,128.41,100.0]
[1719240244810,45.0,128.46,128.41,100.0]
[1719240244999,0.77456604,128.45,128.41,100.0]
[1719240245395,20.0,128.45,128.41,200.0]
[1719240245599,0.77456604,128.44,128.41,100.0]
[1719240245896,22.6534,128.45,128.36,100.0]
[1719240246115,30.62,128.42,128.36,100.0]
[1719240246442,20.77456604,128.41,128.36,100.0]
[1719240247537,15.7014,128.39,128.33,100.0]
[1719240247731,31.39456604,128.38,128.33,100.0]
[1719240247946,20.0,128.37,128.32,100.0]
[1719240248226,20.77456604,128.37,128.32,100.0]
[1719240248431,20.77456604,128.37,128.31,100.0]
[1719240249609,45.0,128.36,128.3,100.0]
[1719240249801,0.77456604,128.35,128.3,200.0]
[1719240250002,20.0,128.35,128.3,200.0]
[1719240250224,0.77456604,128.37,128.31,100.0]
[1719240250429,65.77456604,128.37,128.3,100.0]
[1719240250606,20.77456604,128.37,128.33,100.0]
[1719240250804,20.0,128.37,128.34,100.0]
[1719240251022,20.0,128.37,128.35,100.0]
[1719240251427,20.0,128.37,128.34,100.0]
[1719240251730,20.0,128.37,128.35,100.0]
[1719240251916,20.0,128.37,128.36,100.0]
[1719240252114,20.0,128.37,128.34,200.0]
[1719240252312,20.0,128.37,128.34,100.0]
[1719240252843,20.0,128.37,128.32,200.0]
[1719240253007,20.0,128.37,128.34,200.0]
[1719240253631,20.0,128.37,128.32,200.0]
[1719240253632,20.77456604,128.37,128.32,200.0]
[1719240253813,20.0,128.37,128.34,100.0]
[1719240254016,20.77456604,128.37,128.32,200.0]
[1719240254237,20.0,128.37,128.34,100.0]
[1719240256418,20.0,128.37,128.35,100.0]
[1719240257335,20.0,128.37,128.34,100.0]
[1719240257840,20.0,128.37,128.36,100.0]
[1719240259654,20.0,128.37,128.34,100.0]
[1719240260333,20.0,128.37,128.33,100.0]
[1719240260647,0.77924102,128.34,128.32,100.0]
[1719240261150,0.77924102,128.34,128.3,100.0]
[1719240261835,21.55380706,128.34,128.3,100.0]
[1719240263840,20.77924102,128.34,128.3,100.0]
[1719240264720,20.77924102,128.34,128.31,100.0]
[1719240264922,21.55380706,128.34,128.31,100.0]
[1719240265157,20.77924102,128.34,128.31,100.0]
[1719240265525,21.55380706,128.34,128.29,100.0]
[1719240266252,15.8513,128.33,128.28,100.0]
[1719240266468,0.77456604,128.32,128.28,100.0]
[1719240266666,20.77456604,128.32,128.28,100.0]
[1719240268251,20.0,128.32,128.28,200.0]
[1719240269249,20.77456604,128.32,128.28,100.0]
[1719240269565,20.77456604,128.32,128.26,200.0]
[1719240270074,67.29456604,128.32,128.26,200.0]
[1719240271160,122.14,128.31,128.25,40.0]
[1719240271362,20.77456604,128.3,128.25,40.0]
[1719240271659,53.87376604,128.29,128.25,40.0]
[1719240271869,20.0,128.28,128.25,40.0]
[1719240272045,0.77456604,128.27,128.25,40.0]
[1719240272247,47.29456604,128.27,128.25,20.0]
[1719240272447,0.77456604,128.27,128.25,20.0]
[1719240272647,20.0,128.26,128.25,20.0]
[1719240273047,20.0,128.26,128.25,220.0]
[1719240273347,20.77456604,128.3,128.25,220.0]
[1719240273670,0.77456604,128.29,128.25,220.0]
[1719240273840,47.29456604,128.29,128.25,20.0]
[1719240274059,0.77456604,128.29,128.25,20.0]
[1719240274267,20.77456604,128.31,128.25,20.0]
[1719240274454,46.52,128.3,128.25,20.0]
[1719240274658,0.77456604,128.29,128.25,20.0]
[1719240274961,20.0,128.29,128.25,220.0]
[1719240275274,0.77456604,128.28,128.25,120.0]
[1719240275458,20.77456604,128.31,128.25,120.0]
[1719240275660,91.52,128.3,128.25,20.0]
[1719240275986,20.77456604,128.29,128.25,20.0]
[1719240276181,6.4437,128.26,128.19,100.0]
[1719240276480,20.77456604,128.25,128.19,100.0]
[1719240277391,20.77456604,128.25,128.2,100.0]
[1719240277696,20.77456604,128.25,128.21,100.0]
[1719240277992,20.0,128.24,128.22,100.0]
[1719240278692,20.77456604,128.26,128.21,100.0]
[1719240279565,20.0,128.26,128.23,100.0]
[1719240280370,20.0,128.26,128.25,200.0]
[1719240280582,20.77924102,128.26,128.25,200.0]
[1719240281668,20.77924102,128.26,128.23,200.0]
[1719240281967,20.0,128.25,128.23,100.0]
[1719240282169,0.77924102,128.26,128.23,100.0]
[1719240282385,0.77924102,128.26,128.21,106.4587]
[1719240282386,0.77924102,128.26,128.21,206.4587]
[1719240282785,0.77924102,128.26,128.21,100.0]
[1719240283093,1.55380706,128.26,128.21,100.0]
[1719240283966,0.77924102,128.26,128.22,100.0]
[1719240284170,1.55380706,128.26,128.22,100.0]
[1719240284772,48.07380706,128.26,128.22,100.0]
[1719240285284,20.0,128.25,128.22,100.0]
[1719240285490,0.77924102,128.26,128.22,100.0]
[1719240285672,20.77924102,128.26,128.24,100.0]
[1719240286193,0.77924102,128.26,128.25,100.0]
[1719240287983,0.35072149,128.26,128.25,100.0]
[1719240301204,0.35072149,128.26,128.24,100.0]
[1719240301409,0.35072149,128.26,128.25,100.0]
[1719240301800,0.35072149,128.26,128.25,106.3975]
[1719240302519,6.19866408,128.36,128.35,100.0]